bitfinex-derivatives/quotes_BTCF0:USTF0_20241203
["timestamp","ask_amount","ask_price","bid_price","bid_amount"]
[1733256825995,0.052319,95533.0,95532.0,0.05736]
[1733256826694,0.053319,95533.0,95532.0,0.06636]
[1733256828592,0.053319,95533.0,95532.0,0.01404]
[1733256829485,0.449239,95533.0,95532.0,0.01404]
[1733256830694,0.448239,95533.0,95532.0,0.00504]
[1733256830891,0.449239,95533.0,95532.0,0.00504]
[1733256831193,0.449239,95533.0,95532.0,4e-05]
[1733256831595,0.449239,95533.0,95532.0,0.05236]
[1733256835800,0.584559,95533.0,95532.0,0.05236]
[1733256839004,0.53224,95533.0,95532.0,0.05236]
[1733256839704,0.584559,95533.0,95532.0,0.05236]
[1733256840705,0.53224,95533.0,95532.0,0.05236]
[1733256842402,0.584559,95533.0,95532.0,0.05236]
[1733256843710,0.583559,95533.0,95532.0,0.05236]
[1733256851331,0.03040787,95537.0,95532.0,0.05236]
[1733256851617,0.03040787,95537.0,95536.0,0.052357]
[1733256851618,0.13532,95537.0,95536.0,0.052357]
[1733256852011,0.3608,95542.0,95541.0,0.052315]
[1733256852206,0.07859339,95560.0,95549.0,0.05231]
[1733256852414,0.07599339,95560.0,95553.0,0.052308]
[1733256852610,0.13532,95554.0,95553.0,0.052348]
[1733256852918,0.07599339,95560.0,95559.0,0.052305]
[1733256853116,0.13532,95560.0,95559.0,0.052305]
[1733256853310,0.13532,95560.0,95559.0,0.052345]
[1733256855020,0.3608,95561.0,95560.0,0.052304]
[1733256855316,0.13532,95566.0,95565.0,0.052302]
[1733256855517,0.3966,95578.0,95566.0,0.052301]
[1733256855518,0.13532,95567.0,95566.0,0.052301]
[1733256855816,0.13532,95569.0,95568.0,0.0523]
[1733256856211,0.3608,95578.0,95577.0,0.052295]
[1733256856520,0.49612,95578.0,95577.0,0.052335]
[1733256857020,0.3608,95578.0,95577.0,0.052335]
[1733256857324,0.548374,95578.0,95577.0,0.052335]
[1733256858709,0.556374,95578.0,95577.0,0.053335]
[1733256862916,0.50408,95578.0,95577.0,0.053335]
[1733256865623,0.3688,95578.0,95577.0,0.053335]
[1733256868517,0.3688,95578.0,95577.0,0.052335]
[1733256868518,0.3628,95578.0,95577.0,0.052335]
[1733256869321,0.002,95578.0,95577.0,0.413135]
[1733256869522,0.3634,95599.0,95595.0,0.052285]
[1733256869728,0.3608,95599.0,95598.0,0.052284]
[1733256870032,0.49596,95609.0,95598.0,0.052284]
[1733256870222,0.13516,95609.0,95608.0,0.052278]
[1733256870422,0.13516,95609.0,95608.0,0.052318]
[1733256870423,0.49596,95609.0,95608.0,0.052318]
[1733256870618,0.3608,95609.0,95608.0,0.052318]
[1733256870818,0.13516,95616.0,95615.0,0.052274]
[1733256871023,0.13516,95616.0,95608.0,0.052318]
[1733256871024,0.42398,95618.0,95617.0,0.052273]
[1733256871224,0.4225,95618.0,95617.0,0.052273]
[1733256871528,0.55766,95618.0,95617.0,0.052273]
[1733256871923,0.13512,95620.0,95617.0,0.052313]
[1733256872229,0.13512,95620.0,95619.0,0.052312]
[1733256872421,0.3608,95629.0,95619.0,4e-05]
[1733256872629,0.3608,95629.0,95628.0,0.052267]
[1733256872925,0.49592,95629.0,95628.0,0.052307]
[1733256874530,0.3608,95629.0,95628.0,0.052307]
[1733256874731,0.49592,95629.0,95628.0,0.052307]
[1733256876330,0.3608,95629.0,95628.0,0.052307]
[1733256876538,0.49592,95629.0,95628.0,0.052307]
[1733256877628,0.49992,95629.0,95628.0,0.053307]
[1733256878135,0.3648,95629.0,95628.0,0.053307]
[1733256878333,0.49992,95629.0,95628.0,0.053307]
[1733256880629,0.49592,95629.0,95628.0,0.052307]
[1733256880835,0.49992,95629.0,95628.0,0.053307]
[1733256881531,0.47637779,95629.0,95628.0,0.053307]
[1733256884042,0.34125779,95629.0,95628.0,0.053307]
[1733256886037,0.39352479,95629.0,95628.0,0.00104]
[1733256886227,0.39352479,95629.0,95624.0,0.052269]
[1733256886228,0.052269,95625.0,95624.0,0.052269]
[1733256887743,0.057269,95625.0,95624.0,0.053269]
[1733256889740,0.418069,95625.0,95624.0,0.001]
[1733256889933,0.052273,95618.0,95617.0,4e-05]
[1733256890245,0.548153,95618.0,95617.0,4e-05]
[1733256891143,0.548153,95618.0,95617.0,0.052313]
[1733256891440,0.553153,95618.0,95617.0,0.052313]
[1733256892536,0.553153,95618.0,95617.0,4e-05]
[1733256895844,0.553153,95618.0,95617.0,0.052313]
[1733256897744,0.553153,95618.0,95606.0,0.0026]
[1733256897948,0.052279,95606.0,95601.0,0.052282]
[1733256898141,0.052282,95602.0,95601.0,0.052282]
[1733256898341,0.13439534,95605.0,95604.0,0.05228]
[1733256898743,0.13439534,95605.0,95604.0,0.05232]
[1733256899546,0.13439534,95605.0,95604.0,0.05332]
[1733256899853,0.38953223,95607.0,95606.0,0.052279]
[1733256900051,0.52453223,95607.0,95606.0,0.052279]
[1733256900349,0.52453223,95607.0,95595.0,0.052285]
[1733256900350,0.052287,95592.0,95591.0,0.18706546]
[1733256900548,0.187287,95592.0,95591.0,0.05239539]
[1733256902244,0.187287,95592.0,95591.0,0.05739539]
[1733256903053,0.3608,95593.0,95592.0,0.052287]
[1733256903248,0.4958,95593.0,95592.0,0.052287]
[1733256903446,0.3608,95593.0,95592.0,0.114227]
[1733256903752,0.135,95593.0,95592.0,0.114227]
[1733256903950,0.135,95593.0,95592.0,0.144927]
[1733256904343,0.11572542,95601.0,95592.0,0.09264]
[1733256904540,0.16800842,95601.0,95600.0,0.052282]
[1733256904750,0.187283,95601.0,95600.0,4e-05]
[1733256905038,0.052283,95601.0,95600.0,0.052322]
[1733256905249,0.187323,95601.0,95600.0,0.052322]
[1733256905851,0.187323,95601.0,95600.0,0.053322]
[1733256906851,0.13504,95601.0,95600.0,0.053322]
[1733256907257,0.38953223,95607.0,95606.0,0.052279]
[1733256907747,0.11572542,95610.0,95609.0,0.052278]
[1733256907954,0.3608,95625.0,95624.0,0.052269]
[1733256908145,0.3608,95625.0,95610.0,0.11572542]
[1733256908346,0.413069,95625.0,95624.0,0.052309]
[1733256908549,0.413069,95625.0,95624.0,4e-05]
[1733256908745,0.413069,95625.0,95611.0,0.0301]
[1733256908746,0.943749,95625.0,95609.0,0.0131]
[1733256908946,0.05228,95604.0,95603.0,0.0026]
[1733256909263,0.052282,95601.0,95600.0,0.001]
[1733256909553,0.052287,95592.0,95591.0,0.05239539]
[1733256909744,0.548127,95592.0,95591.0,0.05239539]
[1733256911255,0.548127,95592.0,95591.0,0.05539539]
[1733256911656,0.548127,95592.0,95591.0,0.06039539]
[1733256913355,0.49584,95592.0,95591.0,0.06039539]
[1733256915147,0.548127,95592.0,95591.0,0.06039539]
[1733256920764,0.187327,95592.0,95591.0,0.06039539]
[1733256920970,0.548127,95592.0,95591.0,0.06039539]
[1733256922063,0.49584,95592.0,95591.0,0.06039539]
[1733256925865,0.13504,95592.0,95591.0,0.06039539]
[1733256926062,0.49584,95592.0,95591.0,0.06039539]
[1733256928670,0.548127,95592.0,95591.0,0.06039539]
[1733256928864,0.548127,95592.0,95591.0,0.00810839]
[1733256929173,0.052292,95582.0,95581.0,0.0026]
[1733256929377,0.052298,95575.0,95574.0,0.052295]
[1733256929870,0.052298,95575.0,95564.0,0.06123082]
[1733256929871,0.052294,95579.0,95578.0,0.052293]
[1733256930071,0.00010634,95579.0,95578.0,0.052293]
[1733256930265,0.13510634,95579.0,95578.0,0.052293]
[1733256930771,0.00010634,95579.0,95578.0,0.052333]
[1733256931068,0.13510634,95579.0,95578.0,0.052333]
[1733256931475,0.13510634,95579.0,95578.0,0.08221204]
[1733256931772,0.13610634,95579.0,95578.0,0.09121204]
[1733256932269,0.00110634,95579.0,95578.0,0.09721204]
[1733256937070,0.00110634,95579.0,95578.0,0.067333]
[1733256937679,0.00110634,95579.0,95578.0,0.09805174]
[1733256941270,0.13610634,95579.0,95578.0,0.09805174]
[1733256941476,0.00110634,95579.0,95578.0,0.09805174]
[1733256943473,3.4e-07,95579.0,95578.0,1.59805174]
[1733256945978,3.4e-07,95579.0,95578.0,0.09805174]
[1733256947368,3.4e-07,95579.0,95578.0,0.067333]
[1733256947868,0.05229434,95579.0,95578.0,0.067333]
[1733256948075,3.4e-07,95579.0,95578.0,0.067333]
[1733256958381,3.4e-07,95579.0,95578.0,1.567333]
[1733256960391,0.0026,95597.0,95596.0,0.052285]
[1733256960591,0.13788,95597.0,95596.0,0.052285]
[1733256960779,0.13788,95597.0,95596.0,0.052325]
[1733256960983,0.0304,95600.0,95599.0,0.052283]
[1733256961182,0.0613,95613.0,95600.0,0.052282]
[1733256961485,0.53356,95601.0,95600.0,0.052322]
[1733256961785,0.0613,95613.0,95600.0,0.052322]
[1733256961786,0.19918,95613.0,95612.0,0.052276]
[1733256961987,0.16888,95613.0,95612.0,0.052276]
[1733256962181,0.031,95613.0,95612.0,0.052316]
[1733256962387,0.13788,95620.0,95614.0,0.052275]
[1733256962584,0.13788,95620.0,95619.0,0.052272]
[1733256963292,0.13788,95620.0,95619.0,0.052312]
[1733256963492,0.0333,95628.0,95627.0,0.052268]
[1733256963695,0.17118,95628.0,95627.0,0.052268]
[1733256963893,0.17118,95628.0,95627.0,0.052308]
[1733256964998,0.18318,95628.0,95627.0,0.054308]
[1733256965187,0.235447,95628.0,95627.0,0.054308]
[1733256965697,0.18318,95628.0,95627.0,0.054308]
[1733256968400,0.235447,95628.0,95627.0,0.00204]
[1733256969794,0.052274,95616.0,95615.0,0.0026]
[1733256969988,0.3608,95616.0,95600.0,0.0131]
[1733256970187,0.3608,95616.0,95581.0,0.443193]
[1733256970188,0.3608,95604.0,95603.0,0.052281]
[1733256970392,0.49868,95604.0,95603.0,0.052281]
[1733256970593,0.56138,95604.0,95603.0,0.052281]
[1733256971789,0.56238,95604.0,95603.0,0.052281]
[1733256973084,0.59598,95604.0,95603.0,0.052281]
[1733256973293,0.052288,95594.0,95593.0,0.052286]
[1733256973499,0.052288,95594.0,95589.0,0.3608]
[1733256973500,0.13788,95594.0,95589.0,0.3608]
[1733256973992,0.190167,95594.0,95593.0,0.052286]
[1733256974602,0.190167,95594.0,95593.0,0.054286]
[1733256974991,0.13788,95594.0,95593.0,0.054286]
[1733256976899,0.13788,95594.0,95593.0,0.057286]
[1733256978703,0.45658,95604.0,95603.0,0.052281]
[1733256978899,0.59298,95604.0,95603.0,0.052281]
[1733256979093,0.59298,95604.0,95603.0,0.052321]
[1733256979294,0.4551,95604.0,95603.0,0.052321]
[1733256979692,0.59298,95604.0,95603.0,0.052321]
[1733256980299,0.4571,95604.0,95603.0,0.052321]
[1733256980505,0.59498,95604.0,95603.0,0.052321]
[1733256980909,0.59598,95604.0,95603.0,0.052321]
[1733256982302,0.64826,95604.0,95603.0,0.052321]
[1733256983103,0.51038,95604.0,95603.0,0.052321]
[1733256983409,0.59598,95604.0,95603.0,0.052321]
[1733256983610,0.64826,95604.0,95603.0,0.052321]
[1733256983806,0.59598,95604.0,95603.0,0.052321]
[1733256984814,0.59398,95604.0,95603.0,0.052321]
[1733256985005,0.59498,95604.0,95603.0,0.052321]
[1733256985515,0.59398,95604.0,95603.0,0.052321]
[1733256986613,0.49892,95604.0,95603.0,0.052321]
[1733256988412,0.49792,95604.0,95603.0,0.052321]
[1733256988613,0.49792,95604.0,95603.0,0.054321]
[1733256991612,0.49792,95604.0,95603.0,0.053321]
[1733256991916,0.49792,95604.0,95603.0,0.054321]
[1733256992313,0.3608,95604.0,95603.0,0.054321]
[1733256992521,0.13712,95604.0,95603.0,0.054321]
[1733256993317,0.1894,95604.0,95603.0,0.054321]
[1733256993503,0.05228,95604.0,95603.0,0.054321]
[1733256993704,0.1894,95604.0,95603.0,0.00204]
[1733256994710,0.1894,95604.0,95603.0,4e-05]
[1733256995214,0.1894,95604.0,95603.0,0.052321]
[1733256996806,0.1894,95604.0,95603.0,4e-05]
[1733256997011,0.052286,95594.0,95593.0,0.052286]
[1733256997214,0.052286,95594.0,95589.0,0.3608]
[1733256997215,0.052284,95600.0,95599.0,0.052281]
[1733256997411,0.189404,95600.0,95599.0,0.052281]
[1733256997612,0.189404,95600.0,95599.0,0.052321]
[1733257004323,0.28570803,95600.0,95599.0,0.052321]
[1733257004509,0.189404,95600.0,95599.0,0.052321]
[1733257005324,0.28570824,95600.0,95599.0,0.052321]
[1733257007821,0.14858824,95600.0,95599.0,0.052321]
[1733257008017,0.3608,95602.0,95601.0,0.052282]
[1733257008218,0.49792,95602.0,95601.0,0.052282]
[1733257008426,0.550201,95602.0,95601.0,0.052282]
[1733257008823,0.550201,95602.0,95601.0,0.052322]
[1733257010527,0.551201,95602.0,95601.0,0.052322]
[1733257011721,0.001,95602.0,95601.0,0.052322]
[1733257012022,0.47156851,95620.0,95619.0,0.052272]
[1733257012023,0.3972,95620.0,95619.0,0.052272]
[1733257012326,0.13712,95620.0,95619.0,0.052312]
[1733257012921,0.07588851,95630.0,95619.0,4e-05]
[1733257013223,0.07588851,95630.0,95612.0,0.084776]
[1733257013224,0.13712,95623.0,95620.0,0.052312]
[1733257014327,0.13712,95625.0,95620.0,4e-05]
[1733257014524,0.13712,95625.0,95624.0,0.052269]
[1733257014731,0.13712,95625.0,95624.0,0.052309]
[1733257016618,0.14112,95625.0,95624.0,0.053309]
[1733257017420,0.004,95625.0,95624.0,0.053309]
[1733257017621,0.3688,95625.0,95624.0,0.08351035]
[1733257018321,0.50508,95625.0,95624.0,0.08351035]
[1733257018517,0.3688,95625.0,95624.0,0.00104]
[1733257018729,0.557349,95625.0,95624.0,0.00104]
[1733257019423,0.50508,95625.0,95624.0,0.053309]
[1733257020331,0.50508,95625.0,95624.0,0.00104]
[1733257020518,0.60136719,95625.0,95624.0,0.00104]
[1733257020924,0.557349,95625.0,95624.0,0.00104]
[1733257021121,0.65363666,95625.0,95624.0,0.00104]
[1733257021418,0.65363666,95625.0,95609.0,0.0131]
[1733257021419,0.052275,95613.0,95611.0,0.052276]
[1733257021624,0.13628,95612.0,95611.0,0.052276]
[1733257021819,0.13628,95612.0,95609.0,0.03057522]
[1733257022029,0.13628,95612.0,95611.0,0.052276]
[1733257022229,0.13628,95612.0,95596.0,0.0131]
[1733257022422,0.052282,95601.0,95595.0,0.0327]
[1733257022728,0.3608,95596.0,95595.0,0.084985]
[1733257023931,0.3608,95596.0,95595.0,0.090985]
[1733257024921,0.3608,95596.0,95595.0,0.009]
[1733257025127,0.413085,95596.0,95595.0,0.009]
[1733257026622,0.413085,95596.0,95595.0,0.060285]
[1733257027028,0.413085,95596.0,95595.0,0.003]
[1733257027328,0.413085,95596.0,95595.0,0.008]
[1733257027832,0.413085,95596.0,95595.0,0.007]
[1733257028225,0.413085,95596.0,95595.0,0.059285]
[1733257028226,0.3608,95596.0,95595.0,0.059285]
[1733257028834,0.3608,95596.0,95595.0,0.054285]
[1733257029133,0.3608,95596.0,95595.0,0.057285]
[1733257030235,0.07320251,95617.0,95595.0,1.8658]
[1733257030425,0.07320251,95617.0,95613.0,0.052275]
[1733257030426,0.02092951,95617.0,95613.0,0.052275]
[1733257030631,0.3608,95621.0,95613.0,0.052315]
[1733257030632,0.49708,95614.0,95613.0,0.052315]
[1733257031735,0.3638,95614.0,95613.0,0.052315]
[1733257032032,0.008,95614.0,95613.0,0.413115]
[1733257033035,0.006,95614.0,95613.0,0.413115]
[1733257033433,0.003,95614.0,95613.0,0.413115]
[1733257033744,0.005,95614.0,95613.0,0.413115]
[1733257034230,0.003,95614.0,95613.0,0.413115]
[1733257034427,0.005,95614.0,95613.0,0.413115]
[1733257034626,0.3608,95622.0,95621.0,0.052271]
[1733257035034,0.3608,95622.0,95621.0,0.052311]
[1733257036044,0.3658,95622.0,95621.0,0.053311]
[1733257036231,0.41807,95622.0,95621.0,0.00104]
[1733257036431,0.42007,95622.0,95621.0,0.00104]
[1733257036741,0.48467,95622.0,95621.0,0.00104]
[1733257041238,0.5809658,95622.0,95621.0,0.00104]
[1733257041437,0.48467,95622.0,95606.0,0.03997837]
[1733257041643,0.48467,95622.0,95600.0,0.0105]
[1733257041644,0.3608,95607.0,95600.0,0.0105]
[1733257041842,0.052282,95602.0,95601.0,0.052282]
[1733257043644,0.052282,95602.0,95600.0,0.003]
[1733257043645,0.052282,95601.0,95600.0,0.055282]
[1733257043835,0.052282,95601.0,95600.0,0.052282]
[1733257045239,0.052282,95601.0,95600.0,0.053282]
[1733257045844,0.052282,95601.0,95600.0,0.055282]
[1733257046342,0.052282,95601.0,95600.0,0.053282]
[1733257046547,0.052282,95601.0,95600.0,0.055282]
[1733257048448,0.16718,95606.0,95605.0,0.05228]
[1733257048449,0.21946,95606.0,95605.0,0.05228]
[1733257049356,0.21946,95606.0,95605.0,0.05232]
[1733257049848,0.22046,95606.0,95605.0,0.05232]
[1733257050946,0.22046,95606.0,95605.0,4e-05]
[1733257051442,0.21946,95606.0,95605.0,0.05232]
[1733257051648,0.21946,95606.0,95605.0,4e-05]
[1733257052942,0.21946,95606.0,95605.0,0.05232]
[1733257053142,0.21946,95606.0,95605.0,4e-05]
[1733257053345,0.58026,95606.0,95605.0,4e-05]
[1733257053548,0.58026,95606.0,95589.0,0.052287]
[1733257053549,0.052288,95590.0,95589.0,0.052287]
[1733257053842,0.187408,95590.0,95589.0,0.052287]
[1733257055054,0.187408,95590.0,95589.0,0.058287]
[1733257056639,0.187408,95590.0,95589.0,0.061287]
[1733257067658,0.187448,95590.0,95589.0,0.061287]
[1733257068045,0.13516,95590.0,95589.0,0.061287]
[1733257069243,0.3608,95592.0,95591.0,0.052287]
[1733257069451,0.49596,95592.0,95591.0,0.052287]
[1733257069658,0.49596,95592.0,95591.0,0.052327]
[1733257070353,0.49596,95592.0,95591.0,0.055327]
[1733257071352,0.49596,95592.0,95591.0,0.060327]
[1733257072454,0.58138942,95592.0,95591.0,0.060327]
[1733257073054,0.67866861,95592.0,95591.0,0.060327]
[1733257073446,0.96072857,95592.0,95591.0,0.060327]
[1733257075447,0.67866861,95592.0,95591.0,0.060327]
[1733257076253,0.54350861,95592.0,95591.0,0.060327]
[1733257076457,0.82571679,95592.0,95591.0,0.060327]
[1733257076754,0.3608,95592.0,95591.0,0.060327]
[1733257078252,0.49588,95592.0,95591.0,0.060327]
[1733257078453,0.58114589,95592.0,95591.0,0.060327]
[1733257079457,0.49588,95592.0,95591.0,0.060327]
[1733257083257,0.548167,95592.0,95591.0,0.060327]
[1733257084562,0.63383229,95592.0,95591.0,0.060327]
[1733257084761,0.58154529,95592.0,95591.0,0.060327]
[1733257085855,0.63383229,95592.0,95591.0,0.060327]
[1733257088950,0.63428029,95592.0,95591.0,0.060327]
[1733257089752,0.58199329,95592.0,95591.0,0.060327]
[1733257091558,0.63428029,95592.0,95591.0,0.060327]
[1733257093566,0.58199329,95592.0,95591.0,0.060327]
[1733257094464,0.68060535,95592.0,95591.0,0.060327]
[1733257094658,0.31980535,95592.0,95591.0,0.060327]
[1733257094861,0.68060535,95592.0,95591.0,0.060327]
[1733257095462,0.58199329,95592.0,95591.0,0.060327]
[1733257096958,0.63428029,95592.0,95591.0,0.060327]
[1733257097561,0.58199329,95592.0,95574.0,0.0409]
[1733257097865,0.052299,95570.0,95568.0,0.0026]
[1733257098062,0.052305,95559.0,95558.0,0.05241136]
[1733257098258,0.052305,95559.0,95558.0,0.00010636]
[1733257098259,0.548185,95559.0,95558.0,0.00010636]
[1733257098467,0.052311,95550.0,95544.0,0.0105]
[1733257098658,0.052311,95550.0,95534.0,0.052318]
[1733257098659,0.052315,95541.0,95534.0,0.052318]
[1733257098860,0.3608,95545.0,95534.0,0.052318]
[1733257098861,0.413118,95535.0,95534.0,0.052318]
[1733257099067,0.50161259,95535.0,95534.0,0.052318]
[1733257099366,0.36090841,95535.0,95534.0,0.052318]
[1733257099768,0.49598841,95535.0,95534.0,0.052318]
[1733257099968,0.36090841,95535.0,95534.0,0.052318]
[1733257100172,0.13522841,95535.0,95534.0,0.413118]
[1733257100660,0.13522841,95535.0,95534.0,0.417118]
[1733257100855,0.13622841,95535.0,95534.0,0.424118]
[1733257101571,0.00110841,95535.0,95534.0,0.424118]
[1733257103863,0.00110841,95535.0,95534.0,1.924118]
[1733257105473,0.00110841,95535.0,95534.0,1.563318]
[1733257105776,0.00110841,95535.0,95534.0,1.924118]
[1733257105967,4.1e-07,95535.0,95534.0,1.924118]
[1733257108178,4.1e-07,95535.0,95534.0,1.93720571]
[1733257109465,0.13508,95553.0,95552.0,0.052306]
[1733257109773,0.13508,95553.0,95552.0,0.413106]
[1733257109970,0.13508,95553.0,95552.0,0.413146]
[1733257110676,0.08294029,95563.0,95561.0,0.052301]
[1733257110867,0.187381,95562.0,95561.0,0.052301]
[1733257111479,0.052301,95562.0,95561.0,0.052301]
[1733257111671,0.187381,95562.0,95561.0,0.052301]
[1733257113873,0.13508,95562.0,95561.0,0.052301]
[1733257114070,0.006,95562.0,95561.0,0.052301]
[1733257114277,0.14408,95562.0,95561.0,0.052301]
[1733257115076,0.009,95562.0,95561.0,0.052301]
[1733257115281,0.14408,95562.0,95561.0,0.052301]
[1733257119381,0.14408,95562.0,95547.0,0.052308]
[1733257119579,0.14408,95562.0,95542.0,0.3608]
[1733257119580,0.3608,95551.0,95542.0,0.3608]
[1733257119881,0.052311,95543.0,95542.0,0.3608]
[1733257120270,0.16688,95550.0,95542.0,0.3608]
[1733257120472,0.052311,95545.0,95544.0,0.05231]
[1733257120767,0.052308,95549.0,95548.0,0.052308]
[1733257121178,0.187388,95549.0,95548.0,0.052348]
[1733257121879,0.187388,95549.0,95548.0,4e-05]
[1733257122282,0.052308,95549.0,95548.0,4e-05]
[1733257122487,0.187388,95549.0,95548.0,4e-05]
[1733257123680,0.187388,95549.0,95532.0,0.0105]
[1733257123681,0.052319,95533.0,95532.0,0.0105]
[1733257123980,0.052319,95533.0,95513.0,0.3608]
[1733257123981,0.052326,95521.0,95520.0,0.0524389]
[1733257124181,0.187406,95521.0,95520.0,0.0524389]
[1733257124387,0.13508,95521.0,95520.0,0.0524389]
[1733257125076,0.13608,95521.0,95520.0,0.0614389]
[1733257127187,0.13608,95521.0,95520.0,0.0684389]
[1733257134086,0.188406,95521.0,95520.0,0.0684389]
[1733257134395,0.13608,95521.0,95520.0,0.0684389]
[1733257140293,0.188406,95521.0,95520.0,0.0684389]
[1733257140489,0.187406,95521.0,95520.0,0.0584389]
[1733257140694,0.187406,95521.0,95520.0,0.0624389]
[1733257141092,0.082721,95529.0,95528.0,0.052322]
[1733257141306,0.217801,95529.0,95528.0,0.052322]
[1733257141601,0.217801,95529.0,95528.0,0.052362]
[1733257142899,0.217801,95529.0,95528.0,4e-05]
[1733257143094,0.217801,95529.0,95528.0,0.00104]
[1733257143296,0.217801,95529.0,95528.0,0.053357]
[1733257144095,0.082721,95529.0,95528.0,0.053357]
[1733257144290,0.217801,95529.0,95528.0,0.053357]
[1733257144599,0.13508,95529.0,95528.0,0.053357]
[1733257146003,0.187396,95529.0,95528.0,0.053357]
[1733257146190,0.187396,95529.0,95528.0,0.00104]
[1733257148093,0.27702137,95529.0,95528.0,0.00104]
[1733257148697,0.187396,95529.0,95528.0,0.00104]
[1733257149202,0.27696992,95529.0,95528.0,0.00104]
[1733257150305,0.27700666,95529.0,95528.0,0.053357]
[1733257152201,0.38065768,95529.0,95528.0,0.053357]
[1733257152907,0.27700666,95529.0,95528.0,0.053357]
[1733257153107,0.38101942,95529.0,95528.0,0.053357]
[1733257153301,0.24593942,95529.0,95528.0,0.053357]
[1733257153501,0.38101942,95529.0,95528.0,0.053357]
[1733257154307,0.38101942,95529.0,95528.0,0.052357]
[1733257154698,0.27700666,95529.0,95528.0,0.052357]
[1733257154897,0.187396,95529.0,95528.0,0.052357]
[1733257156799,0.27880946,95529.0,95528.0,0.052357]
[1733257157206,0.187396,95529.0,95528.0,0.052357]
[1733257157722,0.27881115,95529.0,95528.0,0.052357]
[1733257158519,0.27881115,95529.0,95528.0,4e-05]
[1733257158810,0.052324,95515.0,95514.0,0.0105]
[1733257159104,0.052324,95515.0,95501.0,0.0105]
[1733257159105,0.052331,95502.0,95501.0,0.0105]
[1733257159311,0.187411,95502.0,95501.0,0.052331]
[1733257159700,0.18751651,95502.0,95501.0,0.052331]
[1733257160906,0.18751651,95502.0,95501.0,0.057331]
[1733257162597,0.18751651,95502.0,95501.0,0.059331]
[1733257164610,0.21787255,95502.0,95501.0,0.059331]
[1733257166003,0.00010551,95502.0,95501.0,0.059331]
[1733257166404,0.13508,95508.0,95501.0,1.589531]
[1733257166606,0.052322,95519.0,95507.0,0.413128]
[1733257166813,0.13508,95518.0,95509.0,0.052327]
[1733257167012,0.13508,95518.0,95517.0,0.052323]
[1733257167421,0.39604,95522.0,95515.0,0.3608]
[1733257167711,0.3608,95524.0,95523.0,0.052319]
[1733257167903,0.49584,95524.0,95523.0,0.052319]
[1733257168109,0.49584,95524.0,95523.0,0.052359]
[1733257168609,0.13504,95524.0,95523.0,0.052359]
[1733257168812,0.39604,95533.0,95532.0,0.052314]
[1733257169003,0.3608,95543.0,95532.0,0.052314]
[1733257169004,0.3608,95543.0,95542.0,0.052309]
[1733257169209,0.0316,95554.0,95549.0,0.052305]
[1733257169210,0.052304,95551.0,95549.0,0.052305]
[1733257169412,0.21772751,95550.0,95549.0,0.052305]
[1733257169609,0.21772751,95550.0,95549.0,0.052345]
[1733257170315,0.17391995,95550.0,95549.0,0.052345]
[1733257170615,0.30891995,95550.0,95549.0,0.052345]
[1733257170802,0.25661495,95550.0,95549.0,0.052345]
[1733257171003,0.22619244,95550.0,95549.0,0.052345]
[1733257171409,0.143,95550.0,95549.0,0.053345]
[1733257172412,0.149,95550.0,95549.0,0.053345]
[1733257173712,0.201305,95550.0,95549.0,0.00104]
[1733257173912,0.65295036,95550.0,95549.0,0.00104]
[1733257174106,0.90351172,95550.0,95549.0,0.00104]
[1733257174502,0.65295036,95550.0,95549.0,0.00104]
[1733257176617,0.51795036,95550.0,95549.0,0.053345]
[1733257176813,0.65295036,95550.0,95549.0,0.053345]
[1733257177117,0.29215036,95550.0,95549.0,0.053345]
[1733257177512,0.23984536,95550.0,95549.0,0.053345]
[1733257177714,0.149,95550.0,95549.0,0.053345]
[1733257178707,0.014,95550.0,95549.0,0.053345]
[1733257178912,0.201305,95550.0,95549.0,0.053345]
[1733257180013,0.066305,95550.0,95549.0,0.053345]
[1733257180224,0.201305,95550.0,95549.0,0.053345]
[1733257182808,0.149,95550.0,95549.0,0.053345]
[1733257183007,0.014,95550.0,95549.0,0.053345]
[1733257183223,0.149,95550.0,95549.0,0.053345]
[1733257185415,0.14896,95550.0,95549.0,0.053345]
[1733257191123,0.066305,95550.0,95549.0,0.00104]
[1733257191314,0.052312,95539.0,95538.0,0.052311]
[1733257191513,0.052312,95539.0,95525.0,0.052318]
[1733257191514,0.548072,95539.0,95527.0,0.0302491]
[1733257191720,0.052315,95533.0,95532.0,0.052313]
[1733257192118,0.0303,95538.0,95532.0,0.052313]
[1733257192420,0.082612,95538.0,95537.0,0.052352]
[1733257194224,0.222572,95538.0,95537.0,0.052352]
[1733257194935,0.225572,95538.0,95537.0,0.052352]
[1733257197622,0.31720302,95538.0,95537.0,0.052352]
[1733257200530,0.31720302,95538.0,95537.0,4e-05]
[1733257200724,0.42138703,95538.0,95537.0,4e-05]
[1733257201029,0.42138703,95538.0,95537.0,0.052352]
[1733257201930,0.42138703,95538.0,95537.0,4e-05]
[1733257202436,0.70326874,95538.0,95537.0,4e-05]
[1733257203235,0.70326874,95538.0,95537.0,0.052352]
[1733257204434,0.42138703,95538.0,95537.0,0.052352]
[1733257206130,0.31720302,95538.0,95537.0,0.052352]
[1733257207142,0.225572,95538.0,95537.0,0.052352]
[1733257208134,0.14292,95538.0,95537.0,0.052352]
[1733257209133,0.008,95538.0,95537.0,0.052352]
[1733257209336,0.008,95538.0,95529.0,0.3608]
[1733257209337,0.052316,95530.0,95529.0,0.3608]
[1733257209634,0.052322,95519.0,95518.0,0.0026]
[1733257209842,0.052327,95509.0,95508.0,0.03030083]
[1733257210032,0.548047,95509.0,95508.0,0.08262883]
[1733257210239,0.63991211,95509.0,95508.0,0.08262883]